[Event "Emanuel Lasker Open 2017"]
[Site "Gorzow"]
[Date "2017.06.15"]
[Round "4"]
[White "Voloshin, Leonid"]
[Black "Sabuk, Piotr"]
[Result "1/2-1/2"]
[ECO "D56"]
[WhiteElo "2389"]
[BlackElo "2368"]
[Annotator "NA"]
[PlyCount "30"]
[EventDate "2017.??.??"]
[EventType "swiss"]
[EventCountry "POL"]
[SourceTitle "playchess.com"]
[Source "ChessBase"]
[SourceQuality "1"]
[TimeControl "40/5400+30:1800+30"]

1. d4 {[%emt 0:00:00]} d5 {[%emt 0:01:17]} 2. c4 {[%emt 0:00:00]} e6 {[%emt 0:00:23]} 3. Nc3 {[%emt 0:00:00]} Be7 {[%emt 0:00:07]} 4. Nf3 {[%emt 0:00:00]} Nf6 {[%emt 0:00:12]} 5. Bg5 {[%emt 0:00:12]} h6 {[%emt 0:00:24]} 6. Bh4 {[%emt 0:02:14]} O-O {[%emt 0:02:04]} 7. e3 {[%emt 0:00:06]} Ne4 {[%emt 0:00:38]} 8. Bxe7 {[%emt 0:00:08]} Qxe7 {[%emt 0:00:13]} 9. Qc2 {[%emt 0:01:03]} Nxc3 {[%emt 0:01:20]} 10. Qxc3 {[%emt 0:00:21]} dxc4 {[%emt 0:01:53]} 11. Bxc4 {[%emt 0:07:07] b} b6 {[%emt 0:02:45]} 12. Be2 {[%emt 0:09:37]} Bb7 {[%emt 0:18:59] LiveBook: 5 Games} 13. O-O {[%emt 0:10:20]} c5 {[%emt 0:06:18]} 14. dxc5 {[%emt 0:08:49]} Rc8 {[%emt 0:01:25]} 15. b4 $11 {[%emt 0:08:10]} bxc5 {[%emt 0:06:14]} 1/2-1/2

[Event "Emanuel Lasker Open 2017"]
[Site "Gorzow"]
[Date "2017.06.15"]
[Round "4"]
[White "Kubicka, Anna"]
[Black "Kucza, Karol"]
[Result "0-1"]
[ECO "D48"]
[WhiteElo "2168"]
[BlackElo "2278"]
[Annotator "NA"]
[PlyCount "46"]
[EventDate "2017.??.??"]
[EventType "swiss"]
[EventCountry "POL"]
[SourceTitle "playchess.com"]
[Source "ChessBase"]
[SourceQuality "1"]
[TimeControl "40/5400+30:1800+30"]

{[%evp 17,46,0,-6,32767,32767,-41,-46,32767,32767,32767,32767,32767,0,-73,-102,-153,32767,32767,-389,32767,-397,32767,-481,-941,32767,-757,-444,-430,-443,-444,-478]} 1. d4 {[%emt 0:00:00]} d5 {[%emt 0:00:07]} 2. c4 {[%emt 0:00:00]} e6 {[%emt 0:00:07]} 3. Nc3 {[%emt 0:00:04]} c6 {[%emt 0:00:08]} 4. e3 {[%emt 0:00:22]} Nf6 {[%emt 0:00:09]} 5. Nf3 {[%emt 0:00:28]} Nbd7 {[%emt 0:00:09]} 6. Bd3 {[%emt 0:00:23]} dxc4 {[%emt 0:00:09]} 7. Bxc4 {[%emt 0:00:07]} b5 {[%emt 0:00:05]} 8. Bd3 {[%emt 0:00:16]} a6 {[%emt 0:00:09]} 9. O-O {[%emt 0:00:38]} c5 {[%emt 0:00:07] LiveBook: 179 Games} 10. d5 $146 {[%emt 0:01:32] D48: Semi-Slav: Meran System: 7...b5 8 Bd3 a6} ({Predecessor:} 10. a4 b4 11. Ne4 Bb7 12. Nxf6+ Nxf6 13. dxc5 Nd7 14. c6 Bxc6 15. Nd4 Bb7 16. Be2 Bc5 17. Nb3 Be7 18. Bf3 Bxf3 19. Qxf3 O-O 20. Rd1 Ne5 {0-1 (53) Evdokimov,A (2490)-Riazantsev,A (2646) Khanty-Mansiysk 2015}) 10... exd5 {[%emt 0:08:31]} 11. e4 {[%emt 0:06:39]} d4 {[%emt 0:19:36]} 12. Nd5 {[%emt 0:16:44]} Nxd5 {[%emt 0:01:43]} 13. exd5 {[%emt 0:01:56]} Nf6 {[%emt 0:00:04]} 14. Re1+ {[%emt 0:02:06]} Be7 {[%emt 0:01:32]} 15. Qe2 {[%emt 0:01:17]} (15. a4 $11) 15... Ra7 {[%emt 0:09:58]} 16. Ne5 {[%emt 0:24:51]} Qxd5 {[%emt 0:02:12]} 17. Bxb5+ {[%emt 0:09:47]} axb5 {[%emt 0:02:17]} 18. Qxb5+ {[%emt 0:00:03]} Kf8 {[%emt 0:01:32]} 19. Bg5 {[%emt 0:04:44]} h6 {[%emt 0:14:51]} 20. Nc6 {[%emt 0:13:17]} (20. Bxf6 $142 gxf6 21. Qb8) 20... Rb7 {[%emt 0:07:27]} 21. Qa6 {[%emt 0:03:04]} Rc7 {[%emt 0:01:58]} (21... Qxg5 $2 22. Nxe7 Rxe7 23. Qxc8+ Ne8 24. Kf1 $19) 22. Nxe7 {[%emt 0:01:27]} Bxa6 {[%emt 0:00:19]} 23. Nxd5 {[%emt 0:00:09]} Nxd5 $19 {[%emt 0:00:07]} 0-1

[Event "Emanuel Lasker Open 2017"]
[Site "Gorzow"]
[Date "2017.06.15"]
[Round "4"]
[White "Lukasiewicz, Krzysztof"]
[Black "Gawronski, Miroslaw"]
[Result "1-0"]
[ECO "B07"]
[WhiteElo "2098"]
[BlackElo "2071"]
[Annotator "NA"]
[PlyCount "53"]
[EventDate "2017.??.??"]
[EventType "swiss"]
[EventCountry "POL"]
[SourceTitle "playchess.com"]
[Source "ChessBase"]
[SourceQuality "1"]
[TimeControl "40/5400+30:1800+30"]

{[%evp 11,53,59,60,40,41,29,32767,32767,32767,32767,32767,24,32767,32767,32767,32767,32767,0,32767,32767,60,87,32767,32767,32767,32767,32767,32767,709,718,775,787,32767,32767,823,32767,32767,624,32767,613,574,32767,29990,29991]} 1. e4 {[%emt 0:00:13]} d6 {[%emt 0:00:58]} 2. d4 {[%emt 0:00:07]} Nf6 {[%emt 0:00:16]} 3. Nc3 {[%emt 0:00:03]} c6 {[%emt 0:00:19]} 4. Nf3 {[%emt 0:01:02]} Qa5 {[%emt 0:00:41]} 5. Bd2 {[%emt 0:07:39]} Qc7 {[%emt 0:02:06] B07: Pirc Defence: Miscellaneous Systems} 6. Bc4 {[%emt 0:11:38]} b5 {[%emt 0:01:32]} (6... Bg4 7. O-O e5 8. Be3 Be7 9. h3 Bh5 10. a3 Nbd7 11. Re1 g5 12. g4 Bg6 13. Bxg5 {0-1 (38) Volodin,A (2473)-Zhang,Z (2637) Baku 2016}) 7. Bb3 {[%emt 0:01:40]} b4 {[%emt 0:06:21]} 8. Ne2 $146 {[%emt 0:03:21]} ({Predecessor:} 8. Na4 Nxe4 9. Bxb4 d5 10. Ne5 Nd7 11. f4 Ndf6 12. Nc3 Nxc3 13. Bxc3 {0-1 (29) Zapfel,P-Koller,D Schwarzach 2000}) 8... Nxe4 {[%emt 0:02:20]} 9. Bxb4 {[%emt 0:00:06]} a5 {[%emt 0:02:33]} 10. Ba3 {[%emt 0:01:44]} Ba6 {[%emt 0:03:03]} 11. c3 {[%emt 0:02:24]} Nd7 {[%emt 0:01:55]} 12. O-O {[%emt 0:00:40]} e6 {[%emt 0:05:23]} 13. Re1 {[%emt 0:00:36]} Ndf6 {[%emt 0:10:53]} 14. Nf4 {[%emt 0:04:41]} ({Better is} 14. Bc2 $14) 14... g5 {[%emt 0:01:59]} 15. Nh5 {[%emt 0:06:39]} Nxh5 {[%emt 0:08:12]} 16. Rxe4 {[%emt 0:00:05]} Rg8 {[%emt 0:00:50]} 17. d5 {[%emt 0:03:00]} cxd5 {[%emt 0:05:10]} 18. Qxd5 {[%emt 0:04:58]} Bb7 {[%emt 0:09:50]} 19. Rxe6+ {[%emt 0:01:33]} Be7 $2 {[%emt 0:01:56]} (19... Kd8 20. Bxd6 Bxd5 21. Bxc7+ Kxc7 22. Bxd5 fxe6 23. Bxa8 Bc5) 20. Qb5+ {[%emt 0:12:39]} Bc6 {[%emt 0:03:01] [#]} 21. Rxe7+ $1 {[%emt 0:00:28]} Kxe7 {[%emt 0:02:01]} 22. Qe5+ {[%emt 0:01:38]} Kd8 {[%emt 0:06:36]} 23. Rd1 {[%emt 0:04:00]} d5 {[%emt 0:07:06]} 24. Bd6 {[%emt 0:02:01]} Qd7 {[%emt 0:02:50]} 25. Bxd5 {[%emt 0:01:41]} f6 {[%emt 0:05:26]} 26. Qd4 {[%emt 0:12:48]} Re8 {[%emt 0:01:29]} 27. Qb6+ {[%emt 0:00:27] Rg8 Qd4 Qxd6} 1-0

[Event "Emanuel Lasker Open 2017"]
[Site "Gorzow"]
[Date "2017.06.15"]
[Round "4"]
[White "Chyzy, Jakub"]
[Black "Bartnicki, Pawel"]
[Result "1-0"]
[ECO "B06"]
[WhiteElo "1838"]
[BlackElo "2078"]
[Annotator "NA RC"]
[PlyCount "109"]
[EventDate "2017.??.??"]
[EventType "swiss"]
[EventCountry "POL"]
[SourceTitle "playchess.com"]
[Source "ChessBase"]
[SourceQuality "1"]
[TimeControl "40/5400+30:1800+30"]

1. e4 {[%emt 0:00:00]} d6 {[%emt 0:01:24]} 2. d4 {[%emt 0:00:04]} g6 {[%emt 0:00:38]} 3. Nc3 {[%emt 0:00:43]} Bg7 {[%emt 0:00:15]} 4. Be3 {[%emt 0:00:34]} c6 {[%emt 0:00:43]} 5. Qd2 {[%emt 0:01:05]} b5 {[%emt 0:02:51]} 6. f3 {[%emt 0:01:34]} Qc7 {[%emt 0:09:13] B06: Modern Defence} (6... Nd7 7. h4 h5 8. Nh3 Ngf6 9. Ng5 Qc7 10. Ne2 Bb7 11. Nf4 O-O 12. Be2 e5 13. dxe5 Nxe5 14. O-O Rad8 15. Rad1 Rfe8 16. Qc1 {0-1 (94) Panarin,M (2555)-Onischuk,V (2591) Khanty-Mansiysk 2013}) 7. g4 {[%emt 0:03:49] LiveBook: 3 Games} h5 {[%emt 0:01:33]} 8. gxh5 $146 {[%emt 0:00:54]} ({Predecessor:} 8. g5 a5 9. a4 b4 10. Nd1 e6 11. c4 bxc3 12. Nxc3 Na6 13. Bxa6 Bxa6 {0-1 (34) Carlsten,P (2038)-Evertsson,L (2200) Stockholm 2014}) 8... Rxh5 {[%emt 0:00:07]} 9. Nge2 {[%emt 0:00:31]} b4 {[%emt 0:02:16]} 10. Na4 {[%emt 0:00:48]} a5 {[%emt 0:00:12]} 11. Ng3 {[%emt 0:02:27]} Rh8 {[%emt 0:03:18]} 12. a3 {[%emt 0:08:16]} ({White should play} 12. O-O-O $14) 12... Qb7 {[%emt 0:16:53]} 13. b3 {[%emt 0:09:44]} bxa3 {[%emt 0:28:21]} 14. Rxa3 {[%emt 0:00:53]} Qb4 {[%emt 0:00:40]} 15. Ra2 {[%emt 0:07:33]} Nd7 {[%emt 0:12:04]} 16. Nb2 {[%emt 0:04:29]} Qxd2+ {[%emt 0:01:25]} 17. Kxd2 {[%emt 0:00:59]} Nb6 {[%emt 0:00:42]} 18. c4 {[%emt 0:03:48]} Bh6 {[%emt 0:01:56]} 19. f4 {[%emt 0:05:25]} Nf6 {[%emt 0:02:41]} 20. Be2 {[%emt 0:02:17]} Ng4 {[%emt 0:05:56]} 21. Bxg4 {[%emt 0:01:09]} Bxg4 {[%emt 0:00:05]} 22. h3 {[%emt 0:00:20]} Bf3 {[%emt 0:01:46]} 23. Rh2 {[%emt 0:01:16]} d5 {[%emt 0:00:40]} 24. c5 {[%emt 0:00:58]} Nd7 {[%emt 0:00:35]} 25. e5 {[%emt 0:00:33]} Nxc5 {[%emt 0:01:15]} 26. dxc5 {[%emt 0:01:36]} d4 {[%emt 0:00:04]} 27. Nc4 {[%emt 0:01:02]} dxe3+ {[%emt 0:00:11]} 28. Kxe3 {[%emt 0:01:04]} Bd1 $2 {[%emt 0:02:08]} (28... Bd5 $15 {keeps the upper hand.}) 29. Nxa5 {[%emt 0:00:56]} g5 {[%emt 0:00:14]} 30. Nf5 {[%emt 0:04:47]} gxf4+ {[%emt 0:00:07]} 31. Ke4 {[%emt 0:00:11]} Rc8 {[%emt 0:02:08]} 32. Rhd2 {[%emt 0:06:17]} Bh5 {[%emt 0:00:14]} 33. Nxc6 {[%emt 0:00:57]} f3 {[%emt 0:01:29]} 34. Nxh6 {[%emt 0:03:26]} Rxh6 {[%emt 0:00:06]} 35. Nd4 {[%emt 0:00:56]} f2 {[%emt 0:00:57]} 36. Rxf2 {[%emt 0:00:57]} Rxc5 {[%emt 0:00:08]} 37. Ra8+ {[%emt 0:01:15]} Kd7 {[%emt 0:00:03]} 38. Ra7+ {[%emt 0:01:49]} Rc7 {[%emt 0:00:55]} 39. Rxc7+ {[%emt 0:01:12]} Kxc7 {[%emt 0:00:02]} 40. Rc2+ {[%emt 0:00:00]} Kb6 {[%emt 0:00:48] [#]} (40... Kb7 $11 41. Kd5 Bg6) 41. Kd5 {[%emt 0:03:49]} ({White should play} 41. Kf4 $1 $16) 41... Kb7 {[%emt 0:07:26]} 42. Rc3 {[%emt 0:01:44]} Rh8 {[%emt 0:02:06]} 43. Nc6 {[%emt 0:02:42]} Rc8 $2 {[%emt 0:12:51]} (43... f6 $14) 44. Na5+ {[%emt 0:01:25]} Kb8 {[%emt 0:00:04]} 45. Rxc8+ {[%emt 0:02:39]} Kxc8 {[%emt 0:00:05]} 46. Nc6 {[%emt 0:00:37]} Kd7 {[%emt 0:00:28]} 47. Nd4 {[%emt 0:01:12]} f6 {[%emt 0:01:39]} 48. e6+ {[%emt 0:00:21]} Kc7 {[%emt 0:00:14]} 49. b4 {[%emt 0:00:44]} Kb6 $18 {[%emt 0:01:46]} 50. h4 {[%emt 0:08:32]} Bg4 {[%emt 0:00:47]} 51. Ke4 {[%emt 0:01:01]} Bd1 {[%emt 0:02:14]} 52. Kf5 {[%emt 0:00:44]} Bh5 {[%emt 0:00:08]} 53. b5 {[%emt 0:05:54]} Kc5 {[%emt 0:01:30]} 54. Nc6 {[%emt 0:00:11]} Kd6 {[%emt 0:00:49]} 55. Nxe7 {Kd5 Ke4+} 1-0